fUST/lending_fUST_20240110
["ID","MTS","AMOUNT","RATE_DAILY","PERIOD"]
[310942945,1704825047021,-500.0,0.00035616,2]
[310942946,1704825047031,-500.00988812,0.00035616,2]
[310942947,1704825047041,-953.59,0.00035616,2]
[310942948,1704825047051,-500.0,0.00035616,2]
[310942949,1704825047061,-2647.53,0.00035616,2]
[310942950,1704825047071,-803.04,0.00035616,2]
[310942951,1704825047082,-500.0,0.00035616,2]
[310942952,1704825047092,-1437.94,0.00035616,2]
[310942953,1704825047103,-878.59,0.00035616,2]
[310942954,1704825047112,-500.0,0.00035616,2]
[310942955,1704825047122,-500.20629385,0.00035616,2]
[310942956,1704825047131,-500.0,0.00035616,2]
[310942957,1704825047140,-500.0,0.00035616,2]
[310942958,1704825047150,-500.0,0.00035616,2]
[310942959,1704825047159,-500.0,0.00035616,2]
[310942960,1704825047169,-500.0,0.00035616,2]
[310942961,1704825047179,-500.0,0.00035616,2]
[310942962,1704825047189,-500.0,0.00035616,2]
[310942963,1704825047199,-500.0,0.00035616,2]
[310942964,1704825047209,-500.0,0.00035616,2]
[310942965,1704825047219,-500.0,0.00035616,2]
[310942966,1704825047229,-500.0,0.00035616,2]
[310942967,1704825047239,-500.0,0.00035616,2]
[310942968,1704825047249,-695.62,0.00035616,2]
[310942969,1704825047260,-500.0,0.00035616,2]
[310942970,1704825047270,-500.0,0.00035616,2]
[310942971,1704825047281,-500.0,0.00035616,2]
[310942972,1704825047290,-500.0,0.00035616,2]
[310942973,1704825047301,-164.480548,0.00035616,120]
[310942974,1704825047310,-659.06311478,0.00035624,7]
[310942975,1704825047320,-152.38900235,0.00035626,7]
[310942976,1704825047329,-78988.73213039,0.00035687,7]
[310942977,1704825047339,-218.43436,0.00035687,2]
[310942978,1704825047350,-500.0,0.00035725,2]
[310942979,1704825047359,-155.0,0.0003574,2]
[310942980,1704825047369,-152.38900235,0.00035771,7]
[310942981,1704825047380,-5000.0,0.00035785,7]
[310942982,1704825047389,-659.06311478,0.00035797,7]
[310942983,1704825047398,-4000.0,0.00035798,2]
[310942984,1704825047407,-152.3890024,0.00035879,7]
[310942985,1704825047416,-160.0,0.00035889,10]
[310942986,1704825047425,-453.87475052,0.0003589,2]
[310942987,1704825047435,-232.48433794,0.0003589,2]
[310942988,1704825047445,-546.15,0.0003589,2]
[310942989,1704825047455,-500.0,0.0003589,2]
[310942990,1704825047466,-548.35574145,0.0003589,2]
[310942991,1704825047475,-500.0,0.0003589,2]
[310942992,1704825047485,-500.0,0.0003589,2]
[310942993,1704825047494,-500.0,0.0003589,2]
[310942994,1704825047503,-500.0,0.0003589,2]
[310942995,1704825047512,-503.57169132,0.0003589,2]
[310942996,1704825047522,-500.0,0.0003589,2]
[310942997,1704825047531,-500.0,0.0003589,2]
[310942998,1704825047544,-500.0,0.0003589,2]
[310942999,1704825047553,-500.0,0.0003589,2]
[310943000,1704825047563,-207.33219449,0.0003589,2]
[310943001,1704825047572,-500.0,0.0003589,2]
[310943002,1704825047583,-500.0,0.0003589,2]
[310943003,1704825047592,-500.0,0.0003589,2]
[310943004,1704825047602,-502.03444066,0.0003589,2]
[310943005,1704825047611,-500.0,0.0003589,2]
[310943006,1704825047622,-501.10069018,0.0003589,2]
[310943007,1704825047632,-500.0,0.0003589,2]
[310943008,1704825047641,-598.01736751,0.0003589,2]
[310943009,1704825047651,-523.74,0.0003589,2]
[310943010,1704825047661,-500.0,0.0003589,2]
[310943011,1704825047670,-500.0,0.0003589,2]
[310943012,1704825047680,-604.64057332,0.0003589,2]
[310943013,1704825047689,-500.0,0.0003589,2]
[310943014,1704825047699,-500.0,0.0003589,2]
[310943015,1704825047708,-515.02051243,0.0003589,2]
[310943016,1704825047717,-500.0,0.0003589,2]
[310943017,1704825047727,-500.0,0.0003589,2]
[310943018,1704825047736,-500.0,0.0003589,2]
[310943019,1704825047745,-500.0,0.0003589,2]
[310943020,1704825047753,-500.0,0.0003589,2]
[310943021,1704825047762,-517.48025698,0.0003589,2]
[310943022,1704825047772,-500.0,0.0003589,2]
[310943023,1704825047782,-613.2,0.0003589,2]
[310943024,1704825047791,-508.29105618,0.0003589,2]
[310943025,1704825047801,-484.88564107,0.0003589,2]
[310943026,1704825047811,-500.0,0.0003589,2]
[310943027,1704825047820,-383.50340479,0.0003589,2]
[310943028,1704825047830,-500.0,0.0003589,2]
[310943029,1704825047839,-500.0,0.0003589,2]
[310943030,1704825047849,-500.0,0.0003589,2]
[310943031,1704825047859,-176.84588182,0.0003589,2]
[310943032,1704825047868,-500.0,0.0003589,2]
[310943033,1704825047878,-2404.57,0.0003589,2]
[310943034,1704825047888,-500.0,0.0003589,2]
[310943035,1704825047898,-500.0,0.0003589,2]
[310943036,1704825047907,-504.17246542,0.0003589,2]
[310943037,1704825047917,-210.15599459,0.0003589,2]
[310943038,1704825047927,-500.0,0.0003589,2]
[310943039,1704825047938,-500.0,0.0003589,2]
[310943040,1704825047948,-500.0,0.0003589,2]
[310943041,1704825047958,-500.0,0.0003589,2]
[310943042,1704825047968,-500.0,0.0003589,2]
[310943043,1704825047978,-600.0,0.0003589,2]
[310943044,1704825047988,-500.0,0.0003589,2]
[310943045,1704825047998,-500.93,0.0003589,2]
[310943046,1704825048009,-500.0,0.0003589,2]
[310943047,1704825048019,-500.0,0.0003589,2]
[310943048,1704825048028,-500.0,0.0003589,2]
[310943049,1704825048038,-500.0039697,0.0003589,2]
[310943050,1704825048048,-580.61,0.0003589,2]
[310943051,1704825048058,-621.3,0.0003589,2]
[310943052,1704825048068,-500.0,0.0003589,2]
[310943053,1704825048079,-500.0,0.0003589,2]
[310943054,1704825048088,-500.0,0.0003589,2]
[310943055,1704825048099,-500.0,0.0003589,2]
[310943056,1704825048110,-500.0,0.0003589,2]
[310943057,1704825048120,-286.75818751,0.0003589,2]
[310943058,1704825048129,-500.0,0.0003589,2]
[310943059,1704825048139,-500.0,0.0003589,2]
[310943060,1704825048238,-500.0,0.0003589,2]
[310943061,1704825048247,-500.0,0.0003589,2]
[310943062,1704825048256,-500.0,0.0003589,2]
[310943063,1704825048265,-3915.57,0.0003589,2]
[310943064,1704825048275,-506.88634979,0.0003589,2]
[310943065,1704825048284,-245.43479304,0.0003589,2]
[310943066,1704825048294,-516.51757613,0.0003589,2]
[310943067,1704825048304,-935.62,0.0003589,2]
[310943068,1704825048314,-500.0,0.0003589,2]
[310943069,1704825048324,-500.0,0.0003589,2]
[310943070,1704825048334,-1543.17,0.0003589,2]
[310943071,1704825048344,-500.0,0.0003589,2]
[310943072,1704825048355,-500.0,0.0003589,2]
[310943073,1704825048364,-400.0,0.0003589,2]
[310943074,1704825048375,-500.0,0.0003589,2]
[310943075,1704825048386,-500.0,0.0003589,2]
[310943076,1704825048397,-500.78632076,0.0003589,2]
[310943077,1704825048407,-567.99462303,0.0003589,2]
[310943078,1704825048417,-500.0,0.0003589,2]
[310943079,1704825048427,-1000.0,0.0003589,2]
[310943080,1704825048437,-500.0,0.0003589,2]
[310943081,1704825048446,-500.0,0.0003589,2]
[310943082,1704825048455,-500.0,0.0003589,2]
[310943083,1704825048464,-500.0,0.0003589,2]
[310943084,1704825048473,-1047.0,0.0003589,2]
[310943085,1704825048482,-563.62061951,0.0003589,2]
[310943086,1704825048491,-500.0,0.0003589,2]
[310943087,1704825048501,-500.0,0.0003589,2]
[310943088,1704825048510,-500.0,0.0003589,2]
[310943089,1704825048519,-500.0,0.0003589,2]
[310943090,1704825048529,-500.0,0.0003589,2]
[310943091,1704825048537,-500.0,0.0003589,2]
[310943092,1704825048547,-626.10530072,0.0003589,2]
[310943093,1704825048556,-578.75542968,0.0003589,2]
[310943094,1704825048565,-501.94083797,0.0003589,2]
[310943095,1704825048574,-500.0,0.0003589,2]
[310943096,1704825048583,-511.59350189,0.0003589,2]
[310943097,1704825048592,-433.66898738,0.0003589,2]
[310943098,1704825048602,-743.88,0.0003589,2]
[310943099,1704825048612,-500.0,0.0003589,2]
[310943100,1704825048621,-182.06893875,0.0003589,2]
[310943101,1704825048631,-523.96387343,0.0003589,2]
[310943102,1704825048641,-500.0,0.0003589,2]
[310943103,1704825048651,-500.0,0.0003589,2]
[310943104,1704825048661,-608.58,0.0003589,2]
[310943105,1704825048672,-500.0,0.0003589,2]
[310943106,1704825048682,-215.42859924,0.0003589,2]
[310943107,1704825048691,-500.0,0.0003589,2]
[310943108,1704825048702,-520.82,0.0003589,2]
[310943109,1704825048711,-500.0,0.0003589,2]
[310943110,1704825048722,-567.32387945,0.0003589,2]
[310943111,1704825048732,-500.0,0.0003589,2]
[310943112,1704825048742,-500.0,0.0003589,2]
[310943113,1704825048752,-500.0,0.0003589,2]
[310943114,1704825048761,-625.84,0.0003589,2]
[310943115,1704825048771,-500.0,0.0003589,2]
[310943116,1704825048781,-500.0,0.0003589,2]
[310943117,1704825048791,-500.0,0.0003589,2]
[310943118,1704825048804,-500.0,0.0003589,2]
[310943119,1704825048814,-500.0,0.0003589,2]
[310943120,1704825048824,-500.0,0.0003589,2]
[310943121,1704825048832,-1000.0,0.0003589,2]
[310943122,1704825048842,-193.63327634,0.0003589,2]
[310943123,1704825048851,-2696.13,0.0003589,2]
[310943124,1704825048860,-500.0,0.0003589,2]
[310943125,1704825048870,-500.0,0.0003589,2]
[310943126,1704825048879,-500.0,0.0003589,2]
[310943127,1704825048888,-500.0,0.0003589,2]
[310943128,1704825048897,-500.0,0.0003589,2]
[310943129,1704825048906,-500.0,0.0003589,2]
[310943130,1704825048919,-500.0,0.0003589,2]
[310943131,1704825048929,-500.0,0.0003589,2]
[310943132,1704825048938,-500.0,0.0003589,2]
[310943133,1704825048947,-500.0,0.0003589,2]
[310943134,1704825048957,-402.66767791,0.0003589,2]
[310943135,1704825048966,-532.93123084,0.0003589,2]
[310943136,1704825048976,-1855.24,0.0003589,2]
[310943137,1704825048985,-506.60874421,0.0003589,2]
[310943138,1704825048995,-500.0,0.0003589,2]
[310943139,1704825049004,-500.0,0.0003589,2]
[310943140,1704825049014,-530.67654654,0.0003589,2]
[310943141,1704825049024,-500.0,0.0003589,2]
[310943142,1704825049034,-150.41072782,0.0003589,2]
[310943143,1704825049044,-500.0,0.0003589,2]
[310943144,1704825049054,-535.05600543,0.0003589,2]
[310943145,1704825049064,-500.0,0.0003589,2]
[310943146,1704825049074,-500.0,0.0003589,2]
[310943147,1704825049083,-500.0,0.0003589,2]
[310943148,1704825049092,-500.0,0.0003589,2]
[310943149,1704825049102,-636.68,0.0003589,2]
[310943150,1704825049112,-500.0,0.0003589,2]
[310943151,1704825049122,-1488.9,0.0003589,2]
[310943152,1704825049131,-1851.96,0.0003589,2]
[310943153,1704825049140,-500.0,0.0003589,2]
[310943154,1704825049149,-500.0,0.0003589,2]
[310943155,1704825049161,-500.0,0.0003589,2]
[310943156,1704825049177,-1669.17,0.0003589,2]
[310943157,1704825049191,-1445.16,0.0003589,2]
[310943158,1704825049201,-500.0,0.0003589,2]
[310943159,1704825049210,-500.0,0.0003589,2]
[310943160,1704825049220,-500.0,0.0003589,2]
[310943161,1704825049229,-500.0,0.0003589,2]
[310943163,1704825049238,-505.56430784,0.0003589,2]
[310943165,1704825049247,-500.0,0.0003589,2]
[310943166,1704825049256,-501.00292591,0.0003589,2]
[310943167,1704825049265,-500.0,0.0003589,2]
[310943168,1704825049274,-524.91,0.0003589,2]
[310943169,1704825049283,-2530.6,0.0003589,2]
[310943171,1704825049292,-500.0,0.0003589,2]
[310943173,1704825049301,-500.0,0.0003589,2]
[310943174,1704825049310,-8793.55,0.0003589,2]
[310943177,1704825049321,-500.0,0.0003589,2]
[310943178,1704825049331,-500.0,0.0003589,2]
[310943179,1704825049341,-500.0,0.0003589,2]
[310943181,1704825049353,-505.32809536,0.0003589,2]
[310943183,1704825049362,-5912.92,0.0003589,2]
[310943185,1704825049372,-500.0,0.0003589,2]
[310943187,1704825049381,-503.7768482,0.0003589,2]
[310943189,1704825049390,-500.0,0.0003589,2]
[310943191,1704825049399,-500.0,0.0003589,2]
[310943193,1704825049409,-8755.63,0.0003589,2]
[310943194,1704825049420,-500.0,0.0003589,2]
[310943197,1704825049431,-500.0,0.0003589,2]
[310943198,1704825049440,-500.0,0.0003589,2]
[310943200,1704825049450,-2029.73,0.0003589,2]
[310943202,1704825049460,-500.0,0.0003589,2]
[310943204,1704825049470,-3985.81,0.0003589,2]
[310943206,1704825049480,-621.29308559,0.0003589,2]
[310943211,1704825049647,-3937.80804361,0.00027397,3]
[310943212,1704825049660,-6571.89325987,0.00027397,3]
[310943213,1704825049727,-500.0,0.00023288,2]
[310943214,1704825049737,-845.12869652,0.00027397,3]
[310943215,1704825049748,-101.31691441,0.0003589,2]
[310943216,1704825049758,-14.10438907,0.0003589,2]
[310943217,1704825049770,-485.89561093,0.0003589,2]
[310943218,1704825049779,-1303.44,0.0003589,2]
[310943219,1704825049789,-500.0,0.0003589,2]
[310943220,1704825049799,-500.0,0.0003589,2]
[310943222,1704825049808,-1888.24,0.0003589,2]
[310943224,1704825049818,-1322.42438907,0.0003589,2]
[310943227,1704825049871,-1632.09476148,0.00023287,2]
[310943228,1704825049881,-469.54906413,0.00023287,2]
[310943229,1704825049891,-48417.39561093,0.0003589,2]
[310943230,1704825049901,-6056.22,0.0003589,2]
[310943231,1704825049912,-4006.42,0.0003589,2]
[310943232,1704825049922,-211.36391079,0.0003589,2]
[310943233,1704825049932,-500.0,0.0003589,2]
[310943234,1704825049943,-500.0,0.0003589,2]
[310943235,1704825049953,-500.0,0.0003589,2]
[310943236,1704825049963,-500.0,0.0003589,2]
[310943237,1704825049973,-17553.21600668,0.0003589,2]
[310943240,1704825414961,200.0,0.00021998,7]
[310943242,1704825481470,504.578658,0.00019896,30]
[310943243,1704825486515,504.578658,0.00020725,30]
[310943244,1704825491428,504.578658,0.00021554,30]
[310943245,1704825496392,504.578658,0.00022383,30]
[310943246,1704825501435,504.578658,0.00023212,30]
[310943263,1704826167860,1292.26192448,0.00023199,7]
[310943268,1704826185848,861.50794965,0.00023197,7]
[310943270,1704826207859,717.92329138,0.00023187,7]
[310943272,1704826223850,374.03803481,0.00023186,7]
[310943384,1704826238412,-217.386201,0.0001867,2]
[310943386,1704826238424,-154.90705577,0.00019076,3]
[310943388,1704826238435,-154.90705577,0.00019077,2]
[310943390,1704826238446,-173.42807976,0.00019078,2]
[310943392,1704826238456,-14349.3302169,0.0001913,2]
[310943394,1704826238467,-24900.0,0.00019144,2]
[310943396,1704826238477,-191.021445,0.00019178,2]
[310943398,1704826238487,-326.851343,0.00019477,2]
[310943400,1704826238496,-975.795941,0.00019961,2]
[310943402,1704826238507,-1112.0110415,0.00019962,2]
[310943404,1704826238517,-560.33964085,0.00019982,2]
[310943406,1704826238527,-154.90705577,0.00019983,2]
[310943408,1704826238537,-1578.28669107,0.00019983,2]
[310943410,1704826238546,-10496.72843604,0.00019984,2]
[310943412,1704826238556,-451.44650954,0.00019999,2]
[310943413,1704826238565,-309.52982807,0.0002,2]
[310943415,1704826238575,-154.90705577,0.00020262,2]
[310943418,1704826238585,-352.07693534,0.00020263,2]
[310943421,1704826238594,-1194.83746505,0.00020264,2]
[310943424,1704826238604,-676.79171251,0.00020986,2]
[310943427,1704826238614,-439.35135649,0.00020986,2]
[310943430,1704826238625,-2993.53442921,0.00020987,2]
[310943433,1704826238635,-853.38318073,0.00020987,2]
[310943436,1704826238645,-236.58553914,0.00020987,2]
[310943439,1704826238654,-5951.58511538,0.00020988,2]
[310943442,1704826238663,-174.82421155,0.00021903,2]
[310943445,1704826238673,-606.52275476,0.00021903,2]
[310943447,1704826238682,-6830.1,0.00021904,3]
[310943450,1704826238691,-574.63156107,0.00021913,2]
[310943453,1704826238701,-2052.08799979,0.00021914,2]
[310943456,1704826238710,-301.2405075,0.00021914,2]
[310943459,1704826238720,-3021.46604813,0.00021914,2]
[310943461,1704826238729,-2697.20765004,0.00021914,2]
[310943463,1704826238739,-541.1501345,0.00021915,2]
[310943465,1704826238748,-326.6549607,0.00021915,2]
[310943467,1704826238758,-154.90705577,0.00021915,2]
[310943469,1704826238768,-261.71556348,0.00021916,2]
[310943471,1704826238777,-2707.91160787,0.00021916,2]
[310943473,1704826238786,-166.666666,0.00021918,2]
[310943475,1704826238796,-8196.13,0.0002198,3]
[310943477,1704826238805,-9835.35,0.0002199,3]
[310943479,1704826238815,-155.13880198,0.00021998,2]
[310943481,1704826238825,-292.76629846,0.00022,4]
[310943483,1704826238834,-3927.64829251,0.00022,2]
[310943485,1704826238843,-4916.51301772,0.00022,2]
[310943487,1704826238852,-156.82833971,0.00022,2]
[310943489,1704826238862,-174.4761948,0.0002213,2]
[310943491,1704826238871,-166.666666,0.00022431,2]
[310943493,1704826238883,-166.666666,0.00022944,2]
[310943495,1704826238892,-9918.08132345,0.00023,2]
[310943497,1704826238901,-367.88000869,0.00023164,2]
[310943499,1704826238911,-298.86404899,0.00023185,2]
[310943501,1704826238920,-2482.39965936,0.00023185,2]
[310943503,1704826238930,-309.78316417,0.00023185,2]
[310943505,1704826238940,-742.8426154,0.00023185,2]
[310943507,1704826238950,-199.57598445,0.00023185,2]
[310943509,1704826238960,-1250.39757004,0.00023185,2]
[310943511,1704826238969,-273.44366527,0.00023186,2]
[310943512,1704826238979,-155.64440106,0.00023187,2]
[310943514,1704826238989,-172.05259609,0.00023187,2]
[310943516,1704826238999,-174.79319455,0.00023187,2]
[310943518,1704826239010,-2446.97736452,0.00023187,2]
[310943520,1704826239020,-301.78455933,0.00023187,2]
[310943522,1704826239030,-686.41228495,0.00023187,2]
[310943524,1704826239039,-154.90705577,0.00023187,2]
[310943526,1704826239052,-1530.83157832,0.00023187,2]
[310943528,1704826239064,-312.91539313,0.00023187,2]
[310943530,1704826239074,-52483.66539902,0.00023187,2]
[310943532,1704826239084,-510.5588262,0.00023187,2]
[310943534,1704826239094,-555.16649546,0.00023187,2]
[310943536,1704826239103,-2092.57766549,0.00023187,2]
[310943538,1704826239112,-1136.22121702,0.00023188,2]
[310943540,1704826239125,-16609.93707674,0.00023188,2]
[310943542,1704826239135,-385.05192681,0.00023188,2]
[310943544,1704826239144,-296.57104805,0.00023188,2]
[310943546,1704826239153,-245.01576584,0.00023197,2]
[310943548,1704826239163,-1821.42144287,0.00023197,2]
[310943550,1704826239172,-154.90705577,0.00023197,2]
[310943552,1704826239181,-2360.9481465,0.00023197,2]
[310943554,1704826239191,-2079.14548292,0.00023197,2]
[310943556,1704826239200,-300.0,0.00023197,2]
[310943558,1704826239209,-200.0,0.00023197,2]
[310943568,1704826239344,-2533.42252522,0.00023197,2]
[310943569,1704826239354,-533.98993958,0.00023197,2]
[310943570,1704826239363,-154.90705577,0.00023198,2]
[310943571,1704826239374,-270726.40319687,0.00023199,2]
[310943572,1704826239384,-203675.30293733,0.000232,2]
[310943573,1704826239397,-67051.10025954,0.000232,2]
[310943574,1704826239407,-212.90723887,0.00023209,2]
[310943575,1704826239415,-154.90705577,0.00023212,2]
[310943576,1704826239425,-155.76608,0.00023212,2]
[310943577,1704826239434,-860.62181226,0.00023278,2]
[310943578,1704826239443,-1049.10141165,0.00023285,2]
[310943579,1704826239452,-309.62841803,0.00023285,2]
[310943580,1704826239462,-163.61905189,0.00023286,2]
[310943581,1704826239471,-166.666666,0.00023456,2]
[310943582,1704826239480,-166.666666,0.00023969,2]
[310943583,1704826239489,-2292.62638427,0.00024,2]
[310943584,1704826239499,-154.90705577,0.00024,2]
[310943585,1704826239508,-166.666666,0.00024482,2]
[310943586,1704826239517,-154.90705577,0.00025,2]
[310943587,1704826239526,-613.86507578,0.00025,2]
[310943588,1704826239536,-677.25499859,0.00025,2]
[310943589,1704826239545,-3000.0,0.00025,2]
[310943590,1704826239554,-4709.99124251,0.00025,2]
[310943591,1704826239563,-154.90705577,0.00025,2]
[310943592,1704826239572,-613.86507578,0.00025,2]
[310943594,1704826239581,-978.88032498,0.000259,2]
[310943596,1704826239590,-525.7750246,0.00026,2]
[310943598,1704826239599,-496.879336,0.0002698,5]
[310943600,1704826239608,-783.16983902,0.00027,2]
[310943602,1704826239617,-2533.2921841,0.00027,2]
[310943604,1704826239629,-3312.33970056,0.00027,2]
[310943606,1704826239638,-2000.0,0.000275,2]
[310943608,1704826239647,-2150.0,0.0002751,2]
[310943610,1704826239656,-237.51946768,0.00028,2]
[310943611,1704826239664,-176.75654531,0.00029,2]
[310943613,1704826239673,-326.851343,0.00029215,2]
[310943615,1704826239682,-222.8,0.00029972,2]
[310943617,1704826239692,-150.0,0.00029972,2]
[310943619,1704826239701,-6971.6600529,0.0003,4]
[310943621,1704826239710,-686.45378424,0.0003,4]
[310943624,1704826239719,-463.25005188,0.0003,4]
[310943625,1704826239729,-639.45737636,0.0003,4]
[310943627,1704826239739,-212.19442025,0.00030197,2]
[310943629,1704826239748,-192.8476592,0.00030197,2]
[310943631,1704826239757,-154.27812736,0.00030197,2]
[310943633,1704826239766,-264.80820677,0.00030968,4]
[310943635,1704826239775,-500.0,0.00030986,4]
[310943638,1704826239785,-380.02212355,0.00030986,4]
[310943639,1704826239820,-613.37686928,0.00030986,4]
[310943641,1704826239830,-241.46994663,0.00030986,4]
[310943644,1704826239840,-281.06205615,0.00030986,4]
[310943645,1704826239849,-500.0,0.00030986,4]
[310943647,1704826239859,-489.97931679,0.00030986,4]
[310943649,1704826239868,-500.0,0.00030986,2]
[310943652,1704826239879,-577.00741166,0.00030986,2]
[310943654,1704826239889,-463.27858009,0.00030986,2]
[310943655,1704826239898,-592.4896215,0.00030986,2]
[310943657,1704826239907,-500.0,0.00030986,2]
[310943659,1704826239916,-265.87027331,0.00030986,2]
[310943662,1704826239925,-500.0,0.00030986,2]
[310943663,1704826239934,-550.72683051,0.00030986,2]
[310943665,1704826239943,-172.14534858,0.00030986,2]
[310943667,1704826239952,-700.1,0.00030987,2]
[310943670,1704826239962,-700.1,0.00030987,2]
[310943671,1704826239971,-700.1,0.00030987,2]
[310943674,1704826239980,-700.1,0.00030987,2]
[310943675,1704826239989,-700.1,0.00030987,2]
[310943677,1704826239998,-700.1,0.00030987,2]
[310943679,1704826240007,-700.1,0.00030987,2]
[310943681,1704826240016,-700.1,0.00030987,2]
[310943683,1704826240025,-16896.25511368,0.00031718,3]
[310943685,1704826240034,-71627.15767849,0.00031742,3]
[310943687,1704826240047,-832.72857381,0.00031742,3]
[310944346,1704826246463,-154.90705577,0.00020986,2]
[310944347,1704826246473,-195.17243971,0.00023185,2]
[310944348,1704826246483,-894.5419572,0.00023185,2]
[310944349,1704826246495,-52.45789666,0.00023185,2]
[310944350,1704826246504,-157.03719731,0.00023185,2]
[310944351,1704826246514,-1126.49701628,0.00023185,2]
[310944352,1704826246523,-502.54630396,0.00031741,7]
[310944354,1704826246532,-6821.46158579,0.00031742,3]
[310944356,1704826246544,-1720.36508219,0.00031742,3]
[310944358,1704826246556,-11079.92950789,0.00031742,3]
[310944360,1704826246566,-545.21871894,0.000318,3]
[310944362,1704826246578,-135.59445028,0.000318,3]
[310944364,1704826246587,-500.0,0.00032876,7]
[310944365,1704826246597,-460.03265196,0.00032876,7]
[310944366,1704826246606,-228.01327413,0.00032876,7]
[310944367,1704826246615,-617.48448759,0.00032876,7]
[310944368,1704826246626,-355.4937729,0.00032876,7]
[310944369,1704826246635,-198.5479629,0.00032876,7]
[310944370,1704826246644,-500.0,0.00032876,7]
[310944371,1704826246654,-500.0,0.00032876,7]
[310944372,1704826246663,-186.26655888,0.00032876,7]
[310945606,1704826314835,200.0,0.00024198,7]
[310945607,1704826315610,280.0,0.00026618,15]
[310945654,1704826517888,374.03803481,0.00023499,7]
[310945658,1704826533920,374.03803481,0.00020995,7]
[310945664,1704826555902,374.03803481,0.00020995,7]
[310945670,1704826575921,374.03803481,0.00020995,7]
[310945676,1704826595901,374.03803481,0.00020995,7]
[310945681,1704826613901,374.03803481,0.00018968,7]
[310945692,1704826631926,374.03803481,0.00018966,7]
[310945694,1704826651901,374.03803481,0.00018966,7]
[310945699,1704826673907,438.65113101,0.00018963,7]
[310945713,1704826852402,-1250.39757004,0.00017944,2]
[310945714,1704826852429,-154.90705577,0.00017944,3]
[310945715,1704826852453,-574.63156107,0.00017944,2]
[310945716,1704826852476,-2697.20765004,0.00017945,2]
[310945717,1704826852499,-555.16649546,0.00017945,2]
[310945718,1704826852523,-767.68966762,0.00017945,2]
[310945725,1704826867416,154.90705577,0.0001615,3]
[310945733,1704826891400,154.90705577,0.00016149,3]
[310945736,1704826911405,154.90705577,0.00016106,3]
[310945740,1704826928847,2533.42252522,0.00016149,2]
[310945741,1704826929398,154.90705577,0.00016106,3]
[310945742,1704826930033,619.32651112,0.00016149,2]
[310945745,1704826933586,2360.9481465,0.00016149,2]
[310945746,1704826934833,533.98993958,0.00016149,2]
[310945747,1704826935480,154.90705577,0.00016149,2]
[310945749,1704826947395,154.90705577,0.00016105,3]
[310945750,1704826948807,182.91110269,0.00016149,2]
[310945751,1704826948842,1688.94835015,0.00016149,2]
[310945752,1704826949591,1573.965431,0.00016149,2]
[310945753,1704826950027,737.52769539,0.00016149,2]
[310945754,1704826951478,189.52094974,0.00016149,2]
[310945756,1704826954229,150.90945433,0.00028895,30]
[310945758,1704826965586,1311.63785916,0.00016149,2]
[310945759,1704826968834,1407.45695846,0.00016149,2]
[310945760,1704826971402,154.90705577,0.00015447,2]
[310945764,1704826995423,154.90705577,0.00015447,2]
[310945770,1704827015421,154.90705577,0.00015446,2]
[310945771,1704827028118,683.36332462,0.00015446,2]
[310945773,1704827031341,733.28507536,0.00015446,2]
[310945774,1704827033412,154.90705577,0.0001544,2]
[310945780,1704827042112,683.36332462,0.00015446,2]
[310945784,1704827055357,733.28507536,0.00015446,2]
[310945785,1704827058096,683.36332462,0.00015446,2]
[310945788,1704827059556,154.90705577,0.0001544,2]
[310945789,1704827060206,14349.3302169,0.00016282,2]
[310945797,1704827075376,733.28507536,0.00015446,2]
[310945798,1704827077449,154.90705577,0.00015439,2]